Cogmind - Beta 15 @@@ ROGUE MODE // 2025.06.25 @ 17:51:56 Player: Skysub Result: Destroyed by W5-6T7(R) with Subdweller Laser Performance ------------- Evolutions (0) 0 Regions Visited (2) 400 Robots Destroyed (19) 95 Value Destroyed (368) 368 Prototype IDs (11) 220 Alien Tech Used (0) 0 Bonus (0) 0 TOTAL SCORE: 1083 Bonus ------- None Cogmind --------- Core Integrity 0/250 Matter 266/300 Energy 64/100 System Corruption 1% Temperature Cool (6) Movement Core (450) Ox8 Location -10/Subcaves Parts ------- > --- POWER (1) -------- (None) > --- PROPULSION (2) --- (None) > --- UTILITY (2) ------ Large Storage Unit > --- WEAPON (2) ------- Medium Laser Subdweller Machine Gun > --- INVENTORY (15) --- Subdweller Power Source Subdweller Power Source Wheel Subdweller Monowheel Structural Scanner Subdweller Optics Improved Terrain Scanner Tower Shield Mining Laser Peak State ------------ > --- POWER ------------ Subdweller Power Source > --- PROPULSION ------- Light Treads Wheel > --- UTILITY ---------- Large Storage Unit Light Armor Plating > --- WEAPON ----------- Medium Laser Assault Rifle > --- INVENTORY -------- Light Ion Engine Light Treads Light Treads Subdweller Monowheel Structural Scanner Improved Terrain Scanner Tower Shield Medium Laser Subdweller Machine Gun Mining Laser [Rating: 11] Favorites ----------- Power Ion Engine Engine Ion Engine Propulsion Light Treads Treads Light Treads Wheel Wheel Utility Small Storage Unit Device Improved Terrain Scanner Storage Small Storage Unit Protection Light Armor Plating Weapon Assault Rifle Energy Gun Medium Laser Ballistic Gun Assault Rifle Special Weapon Mining Laser Build | -11 -10 -10 ------- Run | Yrd Mat Sub Slots Evolved . | . . . Power . | . . . Propulsion . | . . . Utility . | . . . Weapon . | . . . Parts Attached 19 | 8 5 6 Power 3 | 2 . 1 Engine 3 | 2 . 1 Core . | . . . Reactor . | . . . Propulsion 4 | 2 1 1 Treads 3 | 2 1 . Leg . | . . . Wheel 1 | . . 1 Hover . | . . . Flight . | . . . Utility 5 | 2 2 1 Device 2 | 1 . 1 Storage 2 | 1 1 . Processor . | . . . Hackware . | . . . Protection 1 | . 1 . Artifact . | . . . Weapon 7 | 2 2 3 Energy Gun 2 | 1 . 1 Energy Cannon . | . . . Ballistic Gun 4 | 1 2 1 Ballistic Cannon . | . . . Launcher . | . . . Special Weapon 1 | . . 1 Impact Weapon . | . . . Slashing Weapon . | . . . Piercing Weapon . | . . . Special Melee Weapon . | . . . Unidentified Prototypes . | . . . Parts Lost 9 | . . 9 Power 2 | . . 2 Propulsion 3 | . . 3 Utility 1 | . . 1 Weapon 3 | . . 3 Highest Loss Streak 7 | . . 7 To Critical Strikes . | . . . Average Backups 6 | 2 5 8 Power . | . 1 1 Propulsion 1 | . 1 2 Utility 1 | . . 2 Weapon 2 | . 2 2 Tool/Special . | . . . Unused Backups 4 | . . 4 Power 1 | . . 1 Propulsion 1 | . . 1 Utility 2 | . . 2 Weapon . | . . . Tool/Special . | . . . Average Slot Usage (%) 98 | . 99 95 Engine 13 | . 13 12 Treads 26 | . 28 23 Wheel 1 | . . 3 Device 6 | . 6 7 Storage 14 | . 14 14 Protection 6 | . 7 5 Energy Gun 3 | . 3 1 Ballistic Gun 20 | . 24 14 Special Weapon 3 | . . 10 Peak Build Rating 11 | 9 9 11 Average Rating 8 | 6 7 8 On Entrance 5 | . 9 8 Naked Turns . | . . . Heaviest Build 32 | 14 32 32 Greatest Support 40 | 40 40 40 Greatest Overweight (x) 6 | . . 6 Average Overweight (x) . | . . . Largest Inventory Capacity 15 | 8 15 15 Average Capacity 10 | 7 8 15 Most Carried 13 | 4 8 13 Average Carried 6 | 2 5 9 Final Capacity 15 | 8 15 15 Final Carried 10 | 4 8 10 Class Distribution -------------------- 100% | Mutant Dominant Class ---------------- Mutant | -10/Materials Mutant | -10/Subcaves Resources | -11 -10 -10 ----------- Run | Yrd Mat Sub Matter Collected 619 | 293 196 130 Remotely . | . . . Salvage Created 538 | 84 422 32 Parts 44 | 9 30 5 Haulers Intercepted 1 | . 1 . Recyclers Shooed . | . . . Parts Field Recycled . | . . . Retrieved Matter . | . . . Parts Self-Destructed 2 | . . 2 Prevented . | . . . Kills | -11 -10 -10 ------- Run | Yrd Mat Sub Combat Hostiles Destroyed 11 | . 10 1 Guns 11 | . 10 1 Classes Destroyed 7 | 2 4 1 Worker 2 | 1 1 . Builder 1 | . 1 . Tunneler 4 | 4 . . Hauler 1 | . 1 . Swarmer 3 | . 3 . Grunt 7 | . 7 . Subdweller 1 | . . 1 Best Kill Streak 5 | 3 5 1 Combat Bots Only 5 | . 5 1 Max Kills in Single Turn 1 | 1 1 1 Gunslinging . | . . . Exploded . | . . . Melee . | . . . Uniques/NPCs Destroyed . | . . . Combat | -11 -10 -10 -------- Run | Yrd Mat Sub Hostile Shots Fired 102 | . 45 57 Missed 31 | . 14 17 Hits 71 | . 31 40 Projectile 71 | . 31 40 AOE 2 | . . 2 Damage Taken 1278 | . 340 938 Core 266 | . 37 229 Absorbed by Shields . | . . . Core Remaining (%) 100 | 100 . . Volleys Fired 85 | 13 47 25 Largest 2 | 2 2 2 Hottest 100 | 70 70 100 Shots Fired 152 | 26 92 34 Gun 144 | 26 92 26 Cannon . | . . . Launcher . | . . . Special 8 | . . 8 Kinetic 100 | 13 69 18 Thermal 52 | 13 23 16 Explosive . | . . . Electromagnetic . | . . . Robot Hit Streak 12 | 3 9 12 Robot Miss Streak 6 | 6 5 2 Penetration Max . | . . . Secondary Targets 1 | . 1 . Max Gunslinging Chain 1 | . 1 . Shots Hit Robots 88 | 11 58 19 Core Hits 33 | 6 22 5 Critical Kills . | . . . Critical Parts Destroyed . | . . . Critical Strikes 2 | 1 1 . Burn 2 | 1 1 . Melee Attacks . | . . . Impact . | . . . Slashing . | . . . Piercing . | . . . Sneak Attacks . | . . . Combat Hostiles . | . . . Follow-up Attacks . | . . . Damage Inflicted 1047 | 139 671 237 Guns 1041 | 139 665 237 Cannons . | . . . Explosions . | . . . Melee . | . . . Ramming 6 | . 6 . Kinetic 693 | 40 491 162 Thermal 348 | 99 174 75 Explosive . | . . . Electromagnetic . | . . . Impact . | . . . Slashing . | . . . Piercing . | . . . Highest Corruption 1 | . 1 1 Average Corruption 1 | . 1 1 Corruption Purged . | . . . Corruption Blocked . | . . . Effects 2 | . 1 1 Energy Discharges 1 | . 1 . Data Loss (minor) 1 | . . 1 Overload Shots . | . . . Overflow Damage . | . . . Projectiles . | . . . Explosions . | . . . Melee . | . . . Knockbacks . | . . . Impact . | . . . Kinetic . | . . . Secondary . | . . . Self-Inflicted Damage . | . . . Shots . | . . . Rammed 2 | . 2 . Targets Rammed 3 | . 3 . Kicked . | . . . Crushed 1 | . 1 . Highest Temperature 223 | 80 223 . Average Temperature 60 | 32 73 . Received Heat Transfer 366 | . 183 183 Siege Activations . | . . . Martial Activations . | . . . Shielding Activations . | . . . Robots Disrupted . | . . . Combat Hostiles . | . . . Robots Corrupted . | . . . Combat Hostiles . | . . . Parts Fried . | . . . Impact Corruptions . | . . . Robots Melted . | . . . Combat Hostiles . | . . . Parts Melted 2 | 1 1 . Heat Transferred 1184 | 370 592 222 Parts Sabotaged . | . . . Parts Stolen . | . . . Parts Stripped . | . . . Power Chain Reactions . | . . . Alert | -11 -10 -10 ------- Run | Yrd Mat Sub Maximum Alert Level . | . . . Low Security (%) 100 | 100 100 . Level 1 . | . . . Level 2 . | . . . Level 3 . | . . . Level 4 . | . . . Level 5 . | . . . High Security . | . . . Max Security . | . . . Peak Influence 121 | 5 121 . Initial . | . . . Average 37 | . 45 . Influence Increases 368 | 25 343 . Destroy 0b10 Robot/C 200 | . 200 . Destroy 0b10 Robot/NC 40 | 25 15 . Destroy Leader 52 | . 52 . Select Force Hacks 60 | . 60 . Disable Machine 15 | . 15 . Destroy Structure 1 | . 1 . Influence Decreases 368 | 25 343 . Time Decay 368 | 25 343 . Squads Dispatched 3 | . 3 . Investigation 2 | . 2 . Extermination . | . . . Reinforcement 1 | . 1 . Assault . | . . . Garrison . | . . . Intercept . | . . . Searches Triggered . | . . . Construction Impeded . | . . . Haulers Reinforced . | . . . Active Scanning Responses . | . . . Cargo Convoy Interrupts . | . . . Stealth | -11 -10 -10 --------- Run | Yrd Mat Sub Distress Signals 1 | . 1 . Communications Jammed . | . . . Distress Signals . | . . . Times Spotted 33 | . 25 8 Peak Tracking Total 4 | . 4 3 Tactical Retreats 1 | . . 1 Traps | -11 -10 -10 ------- Run | Yrd Mat Sub Traps Triggered 3 | . 3 . Indirectly . | . . . Trap Hack Attempts . | . . . Triggered . | . . . Disarmed . | . . . Reprogrammed . | . . . Reused . | . . . Traps Extracted . | . . . Installed . | . . . Triggered . | . . . Machines | -11 -10 -10 ---------- Run | Yrd Mat Sub Machines Disabled 2 | . 1 1 Max in Single Turn 1 | . 1 1 Machines Repaired . | . . . Machines Dismantled . | . . . Machines Sabotaged . | . . . Overloaded Fab Kills . | . . . Hacking | -11 -10 -10 --------- Run | Yrd Mat Sub Machines Accessed 3 | . 2 1 Terminals . | . . . Fabricators . | . . . Repair Stations . | . . . Recycling Units 2 | . 2 . Scanalyzers . | . . . Garrison Access . | . . . Total Hacks 6 | . 5 1 Successful 5 | . 4 1 Failed 1 | . 1 . Catastrophic . | . . . Database Lockouts . | . . . Manual 2 | . 2 . Terminals . | . . . Fabricators . | . . . Repair Stations . | . . . Recycling Units 5 | . 5 . Scanalyzers . | . . . Garrison Access . | . . . Terminal Hacks 1 | . . 1 Proto ID Catalog 1 | . . 1 Fabricator Hacks . | . . . Repair Station Hacks . | . . . Recycling Unit Hacks 2 | . 2 . Report Inventory 2 | . 2 . Scanalyzer . | . . . Garrison Access Hacks . | . . . Unauthorized Hacks 2 | . 2 . Terminals . | . . . Fabricators . | . . . Repair Stations . | . . . Recycling Units 2 | . 2 . Tunnel 2 | . 2 . Scanalyzers . | . . . Garrison Access . | . . . Data Cores Recovered . | . . . Used . | . . . Hacking Detections 1 | . 1 . Full Trace Events . | . . . Feedback Events . | . . . Feedback Blocked . | . . . Robot Schematics Acquired . | . . . Robots Built . | . . . Authchips . | . . . Time . | . . . Total Robot Build Rating . | . . . Part Schematics Acquired . | . . . Parts Built . | . . . Authchips . | . . . Time . | . . . Total Part Build Rating . | . . . Parts Repaired . | . . . Time . | . . . Parts Recycled . | . . . Recycled Matter . | . . . Retrieved Matter . | . . . Retrieved Components . | . . . Parts Scanalyzed . | . . . Part Schematics Acquired . | . . . Parts Damaged . | . . . Bothacking | -11 -10 -10 ------------ Run | Yrd Mat Sub Used RIF Installer . | . . . Robots Hacked . | . . . Non-combat . | . . . Combat . | . . . Robot Hacks Applied . | . . . Relay Couplers Released . | . . . Fabnet Peak Effective % . | . . . Robots Rewired . | . . . Allies Hacked . | . . . Hacks Repelled . | . . . Allies | -11 -10 -10 -------- Run | Yrd Mat Sub Total Allies . | . . . Largest Group . | . . . Highest-Rated Group . | . . . Highest-Rated Ally . | . . . Total Orders . | . . . Ally Attacks . | . . . Total Damage . | . . . Kills . | . . . Allies Corrupted . | . . . Allies Melted 1 | . . 1 Intel | -11 -10 -10 ------- Run | Yrd Mat Sub Active Infowar (turns) 906 | 107 507 292 Terrain 614 | 107 507 . Structural 292 | . . 292 Robot Analysis Total . | . . . Derelict Logs Recovered . | . . . Drone Launches . | . . . Drone Recoveries . | . . . Exploration | -11 -10 -10 ------------- Run | Yrd Mat Sub Turns Passed 1811 | 210 1081 520 Spaces Moved 943 | 104 547 292 Core 7 | 6 . 1 Treads 845 | 98 547 200 Legs . | . . . Wheels 91 | . . 91 Hover . | . . . Flight . | . . . Fastest Speed 50 | 50 160 110 Average Speed 154 | 153 160 145 Slowest Speed 350 | 160 160 350 Overloaded Moves . | . . . Propulsion Burnouts . | . . . Robots Hopped . | . . . Potential Cave-ins . | . . . Cave-ins Triggered . | . . . Exploration Rate (%) 37 | 5 87 21 Regions Visited 2 Branch Regions 1 Pre-discovered Areas 3 | . 2 1 Known Exits Taken . | . . . Unknown Exits Taken 2 | 1 1 . Scrap Searched . | . . . Spaces Dug . | . . . Terrain Destroyed . | . . . Melee . | . . . Projectile . | . . . AOE . | . . . Terrain Rammed . | . . . Walls Destroyed . | . . . Machines Disabled . | . . . Actions | -11 -10 -10 --------- Run | Yrd Mat Sub Total 1123 | 127 662 334 Wait 55 | . 55 . Move 941 | 103 546 292 Hop . | . . . Pick Up 10 | 3 2 5 Fast Attach 12 | 7 4 1 Attach 4 | . . 4 Detach 1 | . 1 . Swap 11 | 1 3 7 Drop 1 | . 1 . Fire 85 | 13 47 25 Melee . | . . . Ram . | . . . Kick . | . . . Crush 3 | . 3 . Escape Stasis . | . . . Rewire . | . . . Trap . | . . . Miscellaneous . | . . . Route ------- -11/Scrapyard -10/Materials (discovered 5 exits: [*Mat x2] / [*Min x2] / *Sub) -10/Subcaves History --------- Turn | Location | Event 8 | -11/Scrapyard | Discovered new exit (range 15) 211 | -11/Scrapyard | Entered Materials 307 | -10/Materials | Build established: Mutant 480 | -10/Materials | Discovered new exit (range 15) 575 | -10/Materials | Discovered new exit (range 12) 629 | -10/Materials | Discovered new exit (range 16) 667 | -10/Materials | Discovered new exit (range 16) 1271 | -10/Materials | Discovered new exit (range 6) 1292 | -10/Materials | Entered Subcaves 1293 | -10/Subcaves | Approached by a straggling Scientist 1357 | -10/Subcaves | Learned location of Zion (-7) 1357 | -10/Subcaves | Met a Zionite searching for "candidates" 1465 | -10/Subcaves | Visited 4L-MR0's lab 1481 | -10/Subcaves | Found Tower Shield 1777 | -10/Subcaves | Ambushed by Subdwellers from Twisted Machinery 1781 | -10/Subcaves | Ambushed by angry Subdweller bent on revenge 1785 | -10/Subcaves | Core integrity fell below 50% 1808 | -10/Subcaves | Core integrity fell below 20% 1812 | -10/Subcaves | Destroyed by W5-6T7(R) with Subdweller Laser Last Messages --------------- 01748_ Acquired Sub. Optics. 01754_ Acquired Sub. Power Source. 01758_ Acquired 12 matter. 01762_ Acquired 9 matter. 01777_ W5-6T7(R) emerges from the Twisted Machinery. 01780_ Med. Laser destroyed. 01780_ XM-I33(O) cries out in pain. 01780_ XM-I33(O) destroyed. 01781_ 9E-XXF(R) angrily emerges from the Twisted Machinery. 01781_ 9E-XXF(R): "SUBHATE!" 01781_ Lgt. Armor Plating destroyed. 01783_ Acquired 26 matter. 01786_ Lgt. Treads destroyed. 01787_ Subatomizers dissect the Cobbler Unit. 01792_ Lgt. Treads destroyed. 01798_ Lgt. Ion Engine destroyed. 01799_ Assault Rifle destroyed. 01800_ Subatomizers dissect the Cobbler Unit. 01805_ Lgt. Treads destroyed. 01810_ Subatomizers dissect the Cobbler Unit. Map ----- +----------------------------------------------------+ | #####????????????????????????????????? | | ### #####?????????????????????????????????? | | #### ####???????????????????????????????????? | | ## ####????????????????????????????????????? | | ####????????????????????????????????????? | | ### ####????#??????????????????????????????? | | ##### ####### ##????????????????????????????? | | ######## ###### ###??????????????????????????? | | ####### ##??????????????????????????? | | ????## ## ##??????????????????????????? | | ????## #### ] ##??????????????????????????? | | ????## #### ###??????????????????????????? | | ????####& ####? ###??????????????????????????? | | ???##### ###? ##???????????????????????????? | | ??#####& & ##### #???????????????????????????? | | ??### & #### #???????????????????????????? | | ??## & ### #???????????????????????????? | | ??## #### ##???????????????????????????? | | ??### ##### ##???????????????????????????? | | ??###" #### ##???????????????????????????? | | ???### ## ### ######??????????????????????? | | ????## ### ### # ###????????????????????? | | ????## #### ### ; ###??????????????????? | | ????####### ### ;; #??????????????????? | | ????#####?## % ## #??????????????????? | | ???????????## @ ##" ##?????????????? | | ????????????## !% "" #?????????????? | | ?????????????### ! R R #??????????? | | ???????????????## ## R"## """#?????????? | | ????????????????# #;; ; ""#??#" %??????????? | | ??????????????? #######""##???? #??????????? | | ?????????????# ??????##"#?????????????????? | | ????????????#% ?????????"#?????????????????? | | ????????????## ## ????????? #?????????????????? | | ?????????????##?####?????????? ?????????????????? | | ?????????????????????????????????????????????????? | | ?????????????????????????????????????????????????? | | ?????????????????????????????????????????????????? | | ?????????????????????????????????????????????????? | | ?????????????????????????????????????????????????? | | ?????????????????????????????????????????????????? | | ?????????????????????????????????????????????????? | | ?????????????????????????????????????????????????? | | ?????????????????????????????????????????????????? | | ?????????????????????????????????????????????????? | | ?????????????????????????????????????????????????? | | ?????????????????????????????????????????????????? | | ?????????????????????????????????????????????????? | | ?????????????????????????????????????????????????? | | ?????????????????????????????????????????????????? | +----------------------------------------------------+ Best States ------------- Heat Dissipation 25 Energy Generation 15 Energy Capacity 250 Matter Stores 300 Matter Capacity 300 Sight Range 16 Terrain Scan Range 16 Terrain Scan Density 10 Armor Coverage 150 Evasion (%) 40 Recoil Reduction 2 Item Schematics ----------------- None Robot Schematics ------------------ None Fabricated ------------ Nothing Repaired ---------- Nothing Alien Tech Used ----------------- None Achievements -------------- None Challenges ------------ None Game ------ Seed SigixColdSource Manual? 0 Play Time 00:10:47 Cumulative 128.4 hours Start 2025.06.25 @ 17:42:19 End 2025.06.25 @ 17:51:56 Sessions 1 Manual Loads 0 Difficulty Rogue Special Mode None Game No. 139 Rogue 139 Adventurer 0 Explorer 0 Win Type - Total 2 Types 1/0/0/1/0/0/0/0/0/0 Lore% 61 Gallery% 57 Achievement% 51 Wizard Run 0 Options --------- Layout 1 ASCII 0 Keyboard 1 Movement Numpad Keybinds 0 Fullscreen 1 Font 32/SmallcapsGlow Map View 77x35 Zoom Use 0% Tactical HUD 1 Map Filters NONE Filters NONE Steam 1 RUN: f08f20d7-ac73-44a7-9cb0-ab75d4966a5d